bitfinex-derivatives/quotes_BTCF0:USTF0_20241214
["timestamp","ask_amount","ask_price","bid_price","bid_amount"]
[1734183652905,0.049377,101250.0,101240.0,2.2440662]
[1734183653102,0.049377,101250.0,101240.0,2.2363462]
[1734183653298,0.049377,101250.0,101240.0,2.1811462]
[1734183655010,0.05277378,101260.0,101250.0,0.049375]
[1734183655212,0.05277378,101260.0,101250.0,0.68106]
[1734183656409,0.051291,101260.0,101250.0,0.77497708]
[1734183656604,0.051291,101260.0,101250.0,0.83447708]
[1734183656809,0.051291,101260.0,101250.0,0.74056]
[1734183657317,0.051291,101260.0,101250.0,0.68106]
[1734183657509,0.051291,101260.0,101250.0,0.3608]
[1734183658517,0.051291,101260.0,101250.0,0.45471708]
[1734183658912,0.051291,101260.0,101250.0,0.50409208]
[1734183659805,0.051291,101260.0,101250.0,0.68106]
[1734183660807,0.051291,101260.0,101250.0,0.77497708]
[1734183661209,0.051291,101260.0,101250.0,0.68106]
[1734183662312,0.051291,101260.0,101250.0,0.53776792]
[1734183662616,0.051291,101260.0,101250.0,0.3608]
[1734183662916,0.107991,101260.0,101250.0,0.3608]
[1734183664410,0.19627715,101260.0,101250.0,0.3608]
[1734183664604,0.107991,101260.0,101250.0,0.3608]
[1734183665410,0.107991,101260.0,101250.0,0.45471708]
[1734183665810,0.19627715,101260.0,101250.0,0.45471708]
[1734183666119,0.13957715,101260.0,101250.0,0.45471708]
[1734183666317,0.051291,101260.0,101250.0,0.631685]
[1734183667418,0.051291,101260.0,101250.0,0.86681497]
[1734183667917,0.051291,101260.0,101250.0,0.77289789]
[1734183669518,0.13957715,101260.0,101250.0,0.59592997]
[1734183669922,0.051291,101260.0,101250.0,0.59592997]
[1734183670121,0.13957715,101260.0,101250.0,0.59592997]
[1734183670722,0.13957715,101260.0,101250.0,2.09592997]
[1734183671226,0.13957715,101260.0,101250.0,2.18984705]
[1734183671418,0.051291,101260.0,101250.0,2.23922205]
[1734183673518,0.051291,101260.0,101250.0,2.79944306]
[1734183673816,0.051291,101260.0,101250.0,2.79944464]
[1734183674420,0.051291,101260.0,101250.0,1.29944464]
[1734183674921,0.051291,101260.0,101250.0,2.56431467]
[1734183675122,0.051291,101260.0,101250.0,2.80058077]
[1734183675623,0.051291,101260.0,101250.0,2.56431467]
[1734183676128,0.049371,101260.0,101250.0,2.56431467]
[1734183677629,0.049371,101260.0,101250.0,2.56444016]
[1734183678929,0.13765715,101260.0,101250.0,0.92114808]
[1734183679117,0.13765715,101260.0,101250.0,0.89094727]
[1734183679324,0.13765715,101260.0,101250.0,0.59723041]
[1734183679626,0.13765715,101260.0,101250.0,0.89095573]
[1734183680220,0.25574022,101260.0,101250.0,0.59723041]
[1734183680529,0.16745407,101260.0,101250.0,0.59723041]
[1734183681422,0.25606827,101260.0,101250.0,1.15820938]
[1734183681621,0.16745407,101260.0,101250.0,0.8911755]
[1734183681921,0.16745407,101260.0,101250.0,1.15821092]
[1734183682515,0.16745407,101260.0,101250.0,0.92156074]
[1734183682722,0.16745407,101260.0,101250.0,0.65452532]
[1734183684431,0.16745407,101260.0,101250.0,0.92165724]
[1734183685118,0.22891409,101260.0,101250.0,0.92165724]
[1734183685932,0.16745407,101260.0,101250.0,0.98311726]
[1734183686128,0.16745407,101260.0,101250.0,1.03247838]
[1734183687231,0.16745407,101260.0,101250.0,0.97101836]
[1734183687828,0.25618058,101260.0,101250.0,0.97101836]
[1734183688034,0.16745407,101260.0,101250.0,0.97101836]
[1734183689339,0.25618508,101260.0,101250.0,0.97101836]
[1734183689632,0.25619169,101260.0,101250.0,0.97101836]
[1734183691236,0.25619169,101260.0,101250.0,1.32376819]
[1734183691632,0.25619169,101260.0,101250.0,1.4826066]
[1734183692840,0.25619169,101260.0,101250.0,1.8434066]
[1734183693024,0.13811035,101260.0,101250.0,1.96176802]
[1734183693230,0.049371,101260.0,101250.0,1.87059035]
[1734183693429,0.049371,101260.0,101250.0,1.51537978]
[1734183694531,0.13811035,101260.0,101250.0,1.87051053]
[1734183694732,0.13811035,101260.0,101250.0,3.37051053]
[1734183695038,0.08873935,101260.0,101250.0,3.37051053]
[1734183695229,0.26447464,101270.0,101250.0,3.32113553]
[1734183695537,0.26447464,101270.0,101260.0,0.79972334]
[1734183695839,0.26447464,101270.0,101260.0,1.06684138]
[1734183697633,0.14639157,101270.0,101260.0,1.42197213]
[1734183699136,0.14639157,101270.0,101260.0,1.42181311]
[1734183699337,0.14639157,101270.0,101260.0,1.48411311]
[1734183699937,0.14639157,101270.0,101260.0,1.43474311]
[1734183700439,0.14639157,101270.0,101260.0,2.93474311]
[1734183700645,0.14639157,101270.0,101260.0,1.37244311]
[1734183701040,0.14639157,101270.0,101260.0,1.2788047]
[1734183702346,0.14639157,101270.0,101260.0,0.92367395]
[1734183703248,0.14639157,101270.0,101260.0,0.9322188]
[1734183704946,0.14639157,101270.0,101260.0,1.02585721]
[1734183707244,0.14639157,101270.0,101260.0,1.0550812]
[1734183707553,0.14639157,101270.0,101260.0,1.05524145]
[1734183707749,0.14639157,101270.0,101260.0,1.4103722]
[1734183708247,0.14639157,101270.0,101260.0,1.10461145]
[1734183708850,0.14639157,101270.0,101260.0,1.4597422]
[1734183709357,0.14639157,101270.0,101260.0,1.5287422]
[1734183710255,0.14639157,101270.0,101260.0,1.17361145]
[1734183711649,0.14639157,101270.0,101260.0,1.17332835]
[1734183712051,0.14639157,101270.0,101260.0,0.90649218]
[1734183712257,0.14639157,101270.0,101260.0,1.17332835]
[1734183715259,0.14639157,101270.0,101260.0,1.5284591]
[1734183715665,0.14639157,101270.0,101260.0,1.17332835]
[1734183715961,0.14639157,101270.0,101260.0,1.1725866]
[1734183716160,0.14639157,101270.0,101260.0,1.52771735]
[1734183716661,0.08873935,101270.0,101260.0,1.52771735]
[1734183716863,0.08873935,101270.0,101260.0,1.23180242]
[1734183717258,0.25618542,101280.0,101270.0,0.049365]
[1734183717458,0.26505379,101280.0,101270.0,1.0335132]
[1734183718065,0.26505379,101280.0,101270.0,0.972082]
[1734183718254,0.26505379,101280.0,101270.0,1.0335132]
[1734183718658,0.25618542,101280.0,101270.0,1.0335132]
[1734183720170,0.25618542,101280.0,101270.0,1.38864395]
[1734183720369,0.25618542,101280.0,101270.0,1.41046868]
[1734183720560,0.25618542,101280.0,101270.0,1.09282137]
[1734183720762,0.25618542,101280.0,101270.0,0.98202517]
[1734183720965,0.25618542,101280.0,101270.0,1.33936591]
[1734183721265,0.25618542,101280.0,101270.0,1.38873091]
[1734183722270,0.16744607,101280.0,101270.0,1.38873091]
[1734183723172,0.25624285,101280.0,101270.0,1.38873091]
[1734183723670,0.16744607,101280.0,101270.0,1.38873091]
[1734183724068,0.16744607,101280.0,101270.0,1.03360016]
[1734183725464,0.29030847,101280.0,101270.0,0.92280396]
[1734183725663,0.29030847,101280.0,101270.0,0.19540867]
[1734183725664,0.6199771,101280.0,101270.0,0.19540867]
[1734183725869,1.0075323,101280.0,101270.0,0.37301131]
[1734183726076,1.0075323,101280.0,101270.0,0.17760264]
[1734183728482,0.049365,101270.0,101260.0,0.53840264]
[1734183728666,0.32628347,101270.0,101260.0,0.53832006]
[1734183730079,0.26485227,101270.0,101260.0,0.64912126]
[1734183730277,0.23526043,101270.0,101260.0,0.4716012]
[1734183731667,0.23526043,101270.0,101260.0,1.03232728]
[1734183731978,0.23526043,101270.0,101260.0,2.53232728]
[1734183732173,0.23526043,101270.0,101260.0,2.26751074]
[1734183732687,0.25635694,101270.0,101260.0,2.59380284]
[1734183732978,0.13806151,101270.0,101260.0,2.53237164]
[1734183733275,0.25635694,101270.0,101260.0,2.53237164]
[1734183733974,0.13806151,101270.0,101260.0,2.53237164]
[1734183734570,0.13806151,101270.0,101260.0,2.54122684]
[1734183737878,0.13806151,101270.0,101260.0,2.89635759]
[1734183738079,0.13806151,101270.0,101260.0,2.54122684]
[1734183739077,0.13806151,101270.0,101260.0,2.27636594]
[1734183739279,0.13806151,101270.0,101260.0,2.540598]
[1734183740274,0.2866,101230.0,101180.0,0.3608]
[1734183740479,0.4222312,101200.0,101180.0,0.3608]
[1734183740682,0.11970749,101190.0,101180.0,1.6108402]
[1734183740979,0.22668736,101190.0,101180.0,1.90032001]
[1734183741276,0.410201,101200.0,101180.0,2.07259141]
[1734183741475,0.07926987,101190.0,101180.0,2.01116021]
[1734183741683,0.17672631,101190.0,101180.0,2.07259141]
[1734183741978,0.17672631,101190.0,101180.0,2.0330714]
[1734183742583,0.25577824,101190.0,101180.0,2.0330714]
[1734183742887,0.25577824,101190.0,101180.0,1.98047358]
[1734183743389,0.58692631,101200.0,101180.0,1.91904238]
[1734183743583,0.07895589,101190.0,101180.0,1.95856239]
[1734183743787,0.58692631,101200.0,101180.0,1.95856239]
[1734183744580,0.14676508,101190.0,101180.0,1.95856239]
[1734183745088,0.14676508,101190.0,101180.0,1.91904238]
[1734183745296,0.14676508,101190.0,101180.0,1.95856239]
[1734183745789,0.14676508,101190.0,101180.0,0.45856239]
[1734183746192,0.14676508,101190.0,101180.0,1.95856239]
[1734183747589,0.58692631,101200.0,101180.0,1.95856239]
[1734183747791,0.58692631,101200.0,101190.0,0.049904]
[1734183748494,0.4102,101200.0,101190.0,0.049904]
[1734183748791,0.4102,101200.0,101190.0,0.049404]
[1734183749692,0.50395828,101200.0,101190.0,0.049404]
[1734183749893,0.50395828,101200.0,101190.0,0.049904]
[1734183750283,0.50395828,101200.0,101180.0,1.55823838]
[1734183750588,0.25297096,101190.0,101180.0,1.62783838]
[1734183750792,0.17565136,101190.0,101180.0,1.62783838]
[1734183750984,0.17565136,101190.0,101180.0,1.66735839]
[1734183751295,0.25118162,101190.0,101180.0,1.66735839]
[1734183751992,0.25118162,101190.0,101180.0,1.66785839]
[1734183752193,0.17565136,101190.0,101180.0,1.66785839]
[1734183752789,0.17565136,101190.0,101180.0,1.66735839]
[1734183753395,0.22505536,101190.0,101180.0,1.66735839]
[1734183753583,0.049404,101190.0,101180.0,1.66735839]
[1734183753788,0.66138886,101200.0,101180.0,1.66735839]
[1734183753789,0.71078986,101200.0,101180.0,1.66785739]
[1734183753988,0.07550361,101190.0,101180.0,1.62833738]
[1734183754189,0.71078986,101200.0,101180.0,1.62833738]
[1734183754391,0.07488844,101190.0,101180.0,1.62833738]
[1734183754603,0.71078986,101200.0,101180.0,1.62833738]
[1734183754799,0.07489386,101190.0,101180.0,1.67724238]
[1734183754998,0.71078986,101200.0,101180.0,1.67724238]
[1734183755300,0.07491601,101190.0,101180.0,1.67724238]
[1734183755499,0.71078986,101200.0,101180.0,1.69667182]
[1734183755799,0.07490799,101190.0,101180.0,1.64726682]
[1734183755999,0.71078986,101200.0,101180.0,1.69667182]
[1734183756199,0.07490952,101190.0,101180.0,1.64726682]
[1734183756500,0.76019286,101200.0,101180.0,1.69667182]
[1734183756700,0.3497104,101190.0,101180.0,1.64726682]
[1734183756999,0.76019286,101200.0,101180.0,1.69667182]
[1734183757299,0.3497105,101190.0,101180.0,1.57766682]
[1734183757498,0.049404,101190.0,101180.0,1.57766682]
[1734183757699,0.32420787,101190.0,101180.0,1.61718683]
[1734183759598,0.53103845,101190.0,101180.0,1.61718683]
[1734183759798,0.25623458,101190.0,101180.0,1.61718683]
[1734183760294,0.25623458,101190.0,101180.0,0.10835345]
[1734183760495,0.25623458,101190.0,101170.0,0.97224761]
[1734183760496,0.25633846,101190.0,101170.0,0.97224761]
[1734183760686,0.07494659,101180.0,101170.0,0.97224761]
[1734183760892,0.25633846,101190.0,101180.0,0.049409]
[1734183761291,0.04950788,101190.0,101180.0,1.549409]
[1734183761595,0.32431162,101190.0,101180.0,1.549409]
[1734183761795,0.27490762,101190.0,101180.0,1.549409]
[1734183762690,0.4817382,101190.0,101180.0,1.64316728]
[1734183762895,0.00010388,101190.0,101180.0,2.00396728]
[1734183763297,0.17599611,101190.0,101180.0,2.00396728]
[1734183763496,0.14668964,101190.0,101180.0,2.00396728]
[1734183764304,0.03698964,101190.0,101180.0,2.30396728]
[1734183765805,6.4e-07,101190.0,101180.0,2.30396728]
[1734183766304,6.4e-07,101190.0,101180.0,0.89772556]
[1734183766506,8.7e-07,101200.0,101190.0,0.049404]
[1734183766711,8.7e-07,101200.0,101190.0,0.59772056]
[1734183767005,0.26519238,101220.0,101190.0,2.51213125]
[1734183767201,0.06873494,101210.0,101200.0,0.410199]
[1734183767402,0.61701758,101230.0,101210.0,0.049394]
[1734183767597,0.32203437,101220.0,101210.0,0.049394]
[1734183767904,0.3608,101240.0,101230.0,0.049385]
[1734183768207,0.410177,101250.0,101240.0,0.04938]
[1734183768404,0.410177,101250.0,101240.0,0.14313828]
[1734183769509,0.049377,101250.0,101240.0,0.14313828]
[1734183769803,0.049877,101250.0,101240.0,0.14313828]
[1734183770204,0.30524107,101250.0,101240.0,0.14313828]
[1734183770408,0.30524107,101250.0,101240.0,0.09375828]
[1734183770899,0.30524107,101250.0,101240.0,0.14313828]
[1734183771406,0.049877,101250.0,101240.0,0.14313828]
[1734183772003,0.0005,101250.0,101240.0,0.50393828]
[1734183775917,0.0005,101250.0,101240.0,0.59769656]
[1734183776102,0.11785828,101250.0,101240.0,0.59769656]
[1734183776306,0.11785828,101250.0,101240.0,0.50393828]
[1734183776903,0.11735828,101250.0,101240.0,0.50393828]
[1734183777110,0.11735828,101250.0,101240.0,0.59769656]
[1734183777312,0.11735828,101250.0,101240.0,0.50393828]
[1734183777511,0.20532716,101250.0,101240.0,0.50393828]
[1734183777812,0.11735828,101250.0,101240.0,2.00393828]
[1734183778515,0.20531444,101250.0,101240.0,2.00393828]
[1734183778808,0.11735828,101250.0,101240.0,2.00393828]
[1734183779514,0.20531484,101250.0,101240.0,2.00393828]
[1734183780206,8.4e-07,101250.0,101240.0,2.09769656]
[1734183780514,0.0705,101270.0,101260.0,0.04937]
[1734183780711,0.0705,101270.0,101260.0,0.50392828]
[1734183783118,0.071,101270.0,101260.0,0.50392828]
[1734183783720,0.071,101270.0,101260.0,0.14312828]
[1734183783915,0.0705,101270.0,101260.0,0.14312828]
[1734183784921,0.071,101270.0,101260.0,0.14312828]
[1734183785419,0.071,101270.0,101260.0,0.09375828]
[1734183785621,0.481165,101270.0,101260.0,0.04937]
[1734183785923,0.480665,101270.0,101260.0,0.04937]
[1734183786820,0.480665,101270.0,101250.0,0.10290317]
[1734183787024,0.04937,101260.0,101250.0,0.15227617]
[1734183787419,0.41017,101260.0,101250.0,0.15227617]
[1734183787615,0.41017,101260.0,101250.0,0.05851789]
[1734183788520,0.58603471,101260.0,101250.0,0.05851789]
[1734183790620,0.58603471,101260.0,101250.0,0.049373]
[1734183790821,0.58603471,101260.0,101240.0,1.88049363]
[1734183791017,0.0669,101250.0,101240.0,1.938769]
[1734183792523,0.24276471,101250.0,101240.0,2.03252728]
[1734183792818,0.17586471,101250.0,101240.0,2.03252728]
[1734183793027,0.65353471,101260.0,101250.0,0.049375]
[1734183793223,0.47767,101260.0,101250.0,0.049375]
[1734183793422,0.29343218,101260.0,101250.0,0.049375]
[1734183793624,0.11687,101260.0,101250.0,1.549375]
[1734183793824,0.47767,101260.0,101250.0,1.549375]
[1734183794623,0.47767,101260.0,101250.0,1.64313328]
[1734183795428,0.32370058,101260.0,101250.0,1.64313328]
[1734183795731,0.47767,101260.0,101250.0,1.64313328]
[1734183796426,0.68450058,101260.0,101250.0,1.64313328]
[1734183796631,0.32370058,101260.0,101250.0,1.64313328]
[1734183796826,0.68450058,101260.0,101250.0,1.64313328]
[1734183797330,0.32370058,101260.0,101250.0,1.64313328]
[1734183797538,0.68450058,101260.0,101250.0,1.64313328]
[1734183798127,0.63513058,101260.0,101250.0,1.64313328]
[1734183798332,0.20683058,101260.0,101250.0,2.00393328]
[1734183800833,0.23068256,101260.0,101250.0,2.00393328]
[1734183801333,0.34393058,101270.0,101260.0,0.04937]
[1734183801529,0.34393058,101270.0,101260.0,0.50392828]
[1734183802236,0.34393058,101270.0,101260.0,0.41017]
[1734183805332,0.39329558,101270.0,101260.0,0.41017]
[1734183805526,0.04937,101260.0,101250.0,1.549932]
[1734183805727,0.41017,101260.0,101250.0,0.049372]
[1734183805941,0.61700058,101260.0,101250.0,0.049372]
[1734183806132,0.61700058,101260.0,101250.0,1.549372]
[1734183806732,0.61700058,101260.0,101250.0,1.64313028]
[1734183810135,0.25620058,101260.0,101250.0,1.64313028]
[1734183810337,0.84787457,101260.0,101250.0,1.64313028]
[1734183810536,0.61700058,101260.0,101250.0,1.64313028]
[1734183810935,0.61700058,101260.0,101250.0,1.549372]
[1734183811136,0.85293708,101260.0,101240.0,0.389389]
[1734183811334,0.05982842,101250.0,101240.0,0.438769]
[1734183811547,0.61700058,101260.0,101250.0,0.049375]
[1734183812043,0.61700058,101260.0,101250.0,1.549375]
[1734183815539,0.41017,101260.0,101250.0,1.549375]
[1734183815735,0.61700058,101260.0,101250.0,1.549375]
[1734183816643,0.41017,101260.0,101250.0,1.549375]
[1734183817849,0.41017,101260.0,101250.0,1.5]
[1734183817850,0.50392828,101260.0,101250.0,1.5]
[1734183818034,0.049375,101250.0,101240.0,0.077966]
[1734183818349,0.64595046,101250.0,101240.0,0.077966]
[1734183818544,0.73529556,101250.0,101240.0,1.577966]
[1734183819440,0.55795518,101250.0,101240.0,1.577966]
[1734183820149,0.19715518,101250.0,101240.0,1.577966]
[1734183820451,0.14778018,101250.0,101240.0,1.577966]
[1734183820648,0.14778018,101250.0,101240.0,1.67172428]
[1734183820957,0.14778018,101250.0,101240.0,2.03252428]
[1734183821459,0.14778018,101250.0,101240.0,1.67172428]
[1734183821959,0.14778018,101250.0,101240.0,2.03252428]
[1734183822159,0.14778018,101250.0,101240.0,1.67172428]
[1734183822561,0.14778018,101250.0,101240.0,2.03252428]
[1734183823455,0.14778018,101250.0,101240.0,1.67172428]
[1734183826264,0.14778018,101250.0,101240.0,1.577966]
[1734183827662,0.14778018,101250.0,101240.0,1.67172428]
[1734183829860,0.14778018,101250.0,101240.0,1.65203065]
[1734183830564,0.14778018,101250.0,101240.0,2.01283065]
[1734183830862,0.14778018,101250.0,101240.0,1.67173755]
[1734183831053,0.14778018,101250.0,101240.0,2.03253755]
[1734183831256,0.14778018,101250.0,101240.0,1.67173755]
[1734183831759,0.14778018,101250.0,101240.0,2.03253755]
[1734183832466,0.410173,101260.0,101240.0,2.03253755]
[1734183832663,0.410173,101260.0,101250.0,0.049375]
[1734183832867,0.410173,101260.0,101250.0,0.14313328]
[1734183833667,0.410173,101260.0,101250.0,1.64313328]
[1734183833668,0.58756453,101260.0,101250.0,1.64313328]
[1734183833965,0.58756453,101260.0,101250.0,1.549375]
[1734183834461,0.53819153,101260.0,101250.0,1.64313328]
[1734183834858,0.53819153,101260.0,101250.0,1.71103328]
[1734183835059,0.3608,101260.0,101250.0,1.71103328]
[1734183835564,0.547267,101270.0,101260.0,0.04937]
[1734183835765,0.547267,101270.0,101260.0,0.14312828]
[1734183836462,0.186467,101270.0,101260.0,0.14312828]
[1734183836660,0.36400509,101270.0,101260.0,0.14312828]
[1734183836856,0.186467,101270.0,101260.0,0.14312828]
[1734183837061,0.72480509,101270.0,101260.0,0.14312828]
[1734183837265,0.72480509,101270.0,101260.0,0.04937]
[1734183838059,0.36400509,101270.0,101260.0,0.04937]
[1734183838264,0.69516216,101270.0,101260.0,0.04937]
[1734183838567,0.33436434,101270.0,101260.0,0.04937]
[1734183839964,0.69516434,101270.0,101260.0,0.04937]
[1734183840256,0.69513057,101270.0,101260.0,0.04937]
[1734183840456,0.480667,101270.0,101260.0,0.04937]
[1734183840662,0.65820509,101270.0,101260.0,0.04937]
[1734183841365,0.71964372,101270.0,101260.0,0.11080863]
[1734183842267,0.29740509,101270.0,101260.0,0.11080863]
[1734183842861,0.65820509,101270.0,101260.0,0.11080863]
[1734183843058,0.29740509,101270.0,101260.0,0.12224348]
[1734183843265,0.29740509,101270.0,101260.0,0.06080485]
[1734183843569,0.26769512,101270.0,101260.0,0.06080485]
[1734183845369,0.44522065,101270.0,101260.0,0.06080485]
[1734183845963,0.26768256,101270.0,101260.0,0.06080485]
[1734183846971,0.44522065,101270.0,101260.0,0.06080485]
[1734183847178,0.80602065,101270.0,101260.0,0.06080485]
[1734183847369,0.62848256,101270.0,101260.0,0.06080485]
[1734183847772,0.44522065,101270.0,101260.0,0.06080485]
[1734183847971,0.26768256,101270.0,101260.0,0.06080485]
[1734183848672,0.29740509,101270.0,101260.0,0.06080485]
[1734183848874,0.26765058,101270.0,101260.0,0.06080485]
[1734183849060,0.62845058,101270.0,101260.0,0.06080485]
[1734183849262,0.65820509,101270.0,101260.0,0.06080485]
[1734183849466,0.29740509,101270.0,101260.0,0.06080485]
[1734183849667,0.44519171,101270.0,101260.0,0.06080485]
[1734183849867,0.29740509,101270.0,101260.0,0.06080485]
[1734183850174,0.65820509,101270.0,101260.0,0.06080485]
[1734183850475,0.65820509,101270.0,101260.0,0.08043472]
[1734183850665,0.29740509,101270.0,101260.0,0.08043472]
[1734183851875,0.65820509,101270.0,101260.0,0.08043472]
[1734183864469,0.17753809,101270.0,101260.0,0.53484891]
[1734183864670,0.32554316,101270.0,101260.0,0.53484891]
[1734183864869,0.11840488,101270.0,101260.0,2.03484891]
[1734183865279,0.11840488,101270.0,101260.0,2.06406324]
[1734183869073,0.2185088,101290.0,101270.0,0.049365]
[1734183869280,0.2185088,101290.0,101280.0,0.12282852]
[1734183870081,0.2185088,101290.0,101270.0,0.71007169]
[1734183870481,0.2185088,101290.0,101280.0,1.67218852]
[1734183871480,0.2678638,101290.0,101280.0,0.04936]
[1734183871783,0.2678638,101290.0,101280.0,0.11077426]
[1734183871980,0.6286638,101290.0,101280.0,0.11077426]
[1734183872178,0.04936,101280.0,101270.0,0.13797069]
[1734183872479,0.18786,101280.0,101270.0,0.19938495]
[1734183872686,0.1385,101280.0,101270.0,0.19938495]
[1734183873483,0.1385,101280.0,101270.0,0.11077826]
[1734183877182,0.65839509,101290.0,101280.0,0.04936]
[1734183877388,0.480857,101290.0,101280.0,0.17218852]
[1734183877687,0.120057,101290.0,101280.0,0.17218852]
[1734183878184,0.0707,101290.0,101280.0,1.61077426]
[1734183878389,0.0707,101290.0,101280.0,1.67218852]
[1734183879082,0.4315,101290.0,101280.0,1.61077426]
[1734183879793,0.49291426,101290.0,101280.0,1.54936]
[1734183880091,0.54226926,101290.0,101280.0,1.54936]
[1734183880389,0.54226926,101290.0,101280.0,0.04936]
[1734183880786,0.480855,101290.0,101280.0,0.11077426]
[1734183881090,0.120055,101290.0,101280.0,0.11077426]
[1734183881278,0.120055,101290.0,101280.0,0.12154904]
[1734183881486,0.480855,101290.0,101280.0,0.12154904]
[1734183881784,0.0707,101290.0,101280.0,0.12154904]
[1734183882591,0.0707,101290.0,101280.0,0.48234904]
[1734183883290,0.0707,101290.0,101280.0,0.51450188]
[1734183883688,0.0707,101290.0,101280.0,0.15370188]
[1734183883886,0.0707,101290.0,101280.0,0.06013478]
[1734183884288,0.120055,101290.0,101280.0,0.06013478]
[1734183886389,0.120055,101290.0,101280.0,1.56013478]
[1734183887187,0.480855,101290.0,101280.0,1.56013478]
[1734183887888,0.120055,101290.0,101280.0,1.56013478]
[1734183888198,0.480855,101290.0,101280.0,1.56013478]
[1734183888593,0.120055,101290.0,101280.0,1.56013478]
[1734183889594,0.480855,101290.0,101280.0,1.56013478]
[1734183889789,0.120055,101290.0,101280.0,1.56013478]
[1734183889995,0.480855,101290.0,101280.0,1.56013478]
[1734183890197,0.120055,101290.0,101280.0,1.56013478]
[1734183890898,0.480855,101290.0,101280.0,1.56013478]
[1734183891293,0.480855,101290.0,101280.0,1.57994571]
[1734183891496,0.120055,101290.0,101280.0,1.57994571]
[1734183892093,0.480855,101290.0,101280.0,1.57994571]
[1734183892899,0.120055,101290.0,101280.0,1.57994571]
[1734183893697,0.0707,101290.0,101280.0,1.67351281]
[1734183894400,0.4315,101290.0,101280.0,1.67351281]
[1734183894703,0.24823809,101290.0,101280.0,1.67351281]
[1734183894909,0.0707,101290.0,101280.0,1.67351281]
[1734183895799,0.68769109,101300.0,101290.0,0.049355]
[1734183895994,0.149353,101300.0,101290.0,0.049355]
[1734183896603,0.510153,101300.0,101290.0,0.049355]
[1734183897090,0.68769109,101300.0,101290.0,0.049355]
[1734183897602,0.510153,101300.0,101290.0,0.1429221]
[1734183897795,0.68769109,101300.0,101290.0,0.1429221]
[1734183897991,0.510153,101300.0,101290.0,0.1429221]
[1734183898306,0.68769109,101300.0,101290.0,0.1429221]
[1734183898500,0.510153,101300.0,101290.0,0.1429221]
[1734183898892,0.149353,101300.0,101290.0,0.1429221]
[1734183899096,0.29722689,101300.0,101290.0,0.1429221]
[1734183899299,0.29722689,101300.0,101290.0,0.049355]
[1734183899894,0.47476498,101300.0,101290.0,0.049355]
[1734183900107,0.83556498,101300.0,101290.0,0.049355]
[1734183900292,0.835538,101300.0,101290.0,0.049355]
[1734183900697,0.68769109,101300.0,101290.0,0.049355]
[1734183901191,0.65800492,101300.0,101290.0,0.049355]
[1734183901398,0.83554301,101300.0,101290.0,0.049355]
[1734183901905,0.65800492,101300.0,101290.0,0.049355]
[1734183902103,0.83554301,101300.0,101290.0,0.049355]
[1734183902302,0.68769109,101300.0,101290.0,0.049355]
[1734183904005,0.510153,101300.0,101290.0,0.049355]
[1734183904307,0.687565,101300.0,101290.0,0.049355]
[1734183905308,0.74897166,101300.0,101290.0,0.049355]
[1734183905500,0.74897166,101300.0,101290.0,0.11076166]
[1734183905501,0.687565,101300.0,101290.0,0.11076166]
[1734183909607,0.74897166,101300.0,101290.0,0.049355]
[1734183909914,0.687565,101300.0,101290.0,0.11076166]
[1734183910203,0.510153,101300.0,101290.0,0.11076166]
[1734183910409,0.65803667,101300.0,101290.0,0.11076166]
[1734183912497,0.60868367,101300.0,101290.0,0.11076166]
[1734183913706,0.65803467,101300.0,101290.0,0.11076166]
[1734183915711,0.65803467,101300.0,101290.0,1.61076166]
[1734183916011,0.60868367,101300.0,101290.0,1.61076166]
[1734183923011,0.24788367,101300.0,101290.0,1.61076166]
[1734183924025,0.1,101300.0,101290.0,2.03296832]
[1734183924225,0.1,101300.0,101290.0,1.97156166]
[1734183927515,0.1,101300.0,101290.0,1.61076166]
[1734183927927,0.24788367,101300.0,101290.0,1.61076166]
[1734183928127,0.71944133,101300.0,101290.0,1.549355]
[1734183928321,0.71944133,101300.0,101290.0,1.5]
[1734183928522,0.049355,101290.0,101280.0,0.06013378]
[1734183928715,0.443804,101290.0,101280.0,0.13056058]
[1734183929127,0.804604,101290.0,101280.0,1.63056058]
[1734183930321,0.86601066,101290.0,101280.0,1.63056058]
[1734183931329,0.86601066,101290.0,101280.0,1.549359]
[1734183931829,0.804604,101290.0,101280.0,1.61076566]
[1734183932022,0.804609,101290.0,101280.0,1.61076566]
[1734183933328,0.982021,101290.0,101280.0,1.61076566]
[1734183933524,0.804609,101290.0,101280.0,1.61076566]
[1734183934931,0.637709,101290.0,101280.0,1.61076566]
[1734183935129,0.508649,101290.0,101280.0,0.11076566]
[1734183935531,0.508649,101290.0,101280.0,1.61076566]
[1734183936136,0.679549,101290.0,101280.0,1.61076566]
[1734183936435,0.816709,101290.0,101280.0,0.11076566]
[1734183937127,0.816709,101290.0,101280.0,1.61076566]
[1734183937336,0.816709,101290.0,101280.0,1.549359]
[1734183938129,0.87811566,101290.0,101280.0,0.049359]
[1734183938636,0.90767866,101290.0,101280.0,1.549359]
[1734183939039,0.049365,101280.0,101270.0,0.060499]
[1734183939331,0.6435914,101280.0,101270.0,0.12190566]
[1734183939533,0.587577,101280.0,101270.0,1.560499]
[1734183939732,0.64898366,101280.0,101270.0,1.560499]
[1734183939928,0.79661499,101280.0,101270.0,1.560499]
[1734183940134,0.79661499,101280.0,101270.0,0.060499]
[1734183941225,0.73520833,101280.0,101270.0,0.060499]
[1734183941429,0.55779633,101280.0,101270.0,0.060499]
[1734183941729,0.55779633,101280.0,101270.0,1.560499]
[1734183943040,0.55779633,101280.0,101270.0,0.060499]
[1734183946437,0.62638294,101280.0,101270.0,0.1541146]
[1734183946642,0.2064186,101280.0,101270.0,0.1541146]
[1734183946942,0.47875161,101280.0,101270.0,0.060499]
[1734183949042,0.47875161,101280.0,101270.0,1.560499]
[1734183949347,0.11795161,101280.0,101270.0,1.560499]
[1734183949534,0.56722551,101280.0,101270.0,1.560499]
[1734183949741,0.47875161,101280.0,101270.0,1.560499]
[1734183951345,0.52811661,101280.0,101270.0,1.560499]
[1734183951839,0.52811661,101280.0,101270.0,0.060499]
[1734183952044,0.65141193,101280.0,101270.0,0.060499]
[1734183954966,0.65141193,101280.0,101270.0,0.01113]
[1734183955150,0.60204693,101280.0,101260.0,1.56874594]
[1734183955351,0.52819217,101270.0,101260.0,1.56874594]
[1734183956557,0.7694391,101270.0,101260.0,1.56874594]
[1734183956855,0.82331693,101270.0,101260.0,1.549372]
[1734183957055,0.90691693,101270.0,101260.0,1.549372]
[1734183958456,0.90691693,101270.0,101260.0,1.5]
[1734183958661,0.049375,101260.0,101250.0,0.049378]
[1734183958852,0.76957446,101260.0,101250.0,0.049378]
[1734183959254,0.65142193,101260.0,101250.0,1.549378]
[1734183959450,0.65142193,101260.0,101250.0,1.56029495]
[1734183960155,0.65142193,101260.0,101250.0,0.06029495]